fUSD/lending_fUSD_20250504
["ID","MTS","AMOUNT","RATE_DAILY","PERIOD"]
[359853448,1746373850674,-450.0,0.0001978,2]
[359853449,1746373850684,-450.0,0.0001978,2]
[359853450,1746373850694,-450.0,0.0001978,2]
[359853451,1746373850704,-450.0,0.0001978,2]
[359853452,1746373850713,-289.39,0.0001978,2]
[359853453,1746373850723,-593.71,0.0001978,2]
[359853454,1746373850733,-470.0,0.0001978,2]
[359853455,1746373850743,-450.0,0.0001978,2]
[359853456,1746373850752,-450.0,0.0001978,2]
[359853457,1746373850762,-470.0,0.0001978,2]
[359853458,1746373850772,-450.0,0.0001978,2]
[359853459,1746373850781,-487.78,0.0001978,2]
[359853460,1746373850791,-450.0,0.0001978,2]
[359853461,1746373850800,-261.21,0.0001978,2]
[359853462,1746373850810,-533.425789,0.0001978,2]
[359853463,1746373850819,-450.0,0.0001978,2]
[359853464,1746373850830,-450.0,0.0001978,2]
[359853465,1746373850839,-450.0,0.0001978,2]
[359853466,1746373850849,-450.0,0.0001978,2]
[359853467,1746373850858,-505.49,0.0001978,2]
[359853468,1746373850867,-450.0,0.0001978,2]
[359853469,1746373850881,-450.0,0.0001978,2]
[359853470,1746373850891,-450.0,0.0001978,2]
[359853471,1746373850900,-427.156817,0.0001978,2]
[359853472,1746373850910,-213.91,0.0001978,2]
[359853473,1746373850920,-164.35,0.0001978,2]
[359853474,1746373850930,-450.0,0.0001978,2]
[359853475,1746373850939,-412.29410522,0.0001978,2]
[359853476,1746373850949,-492.93,0.0001978,2]
[359853477,1746373850958,-450.0,0.0001978,2]
[359853478,1746373850968,-460.0,0.0001978,2]
[359853479,1746373850978,-490.0,0.0001978,2]
[359853480,1746373850988,-450.0,0.0001978,2]
[359853481,1746373850997,-495.48,0.0001978,2]
[359853482,1746373851007,-450.0,0.0001978,2]
[359853483,1746373851018,-450.0,0.0001978,2]
[359853484,1746373851027,-450.0,0.0001978,2]
[359853485,1746373851038,-450.0,0.0001978,2]
[359853486,1746373851048,-450.0,0.0001978,2]
[359853487,1746373851058,-450.0,0.0001978,2]
[359853488,1746373851074,-450.0,0.0001978,2]
[359853489,1746373851083,-450.0,0.0001978,2]
[359853490,1746373851093,-450.0,0.0001978,2]
[359853491,1746373851103,-470.0,0.0001978,2]
[359853492,1746373851112,-450.0,0.0001978,2]
[359853493,1746373851122,-470.0,0.0001978,2]
[359853494,1746373851132,-450.0,0.0001978,2]
[359853495,1746373851142,-450.0,0.0001978,2]
[359853496,1746373851152,-450.0,0.0001978,2]
[359853497,1746373851161,-470.0,0.0001978,2]
[359853498,1746373851170,-470.0,0.0001978,2]
[359853499,1746373851180,-450.0,0.0001978,2]
[359853500,1746373851190,-470.0,0.0001978,2]
[359853501,1746373851200,-272.6,0.0001978,2]
[359853502,1746373851209,-450.0,0.0001978,2]
[359853503,1746373851220,-450.0,0.0001978,2]
[359853504,1746373851229,-450.0,0.0001978,2]
[359853505,1746373851239,-480.71,0.0001978,2]
[359853506,1746373851250,-450.0,0.0001978,2]
[359853507,1746373851260,-450.0,0.0001978,2]
[359853508,1746373851270,-450.0,0.0001978,2]
[359853509,1746373851279,-500.0,0.0001978,2]
[359853510,1746373851288,-450.0,0.0001978,2]
[359853511,1746373851298,-221.34,0.0001978,2]
[359853512,1746373851308,-579.32,0.0001978,2]
[359853513,1746373851318,-450.0,0.0001978,2]
[359853514,1746373851328,-597.84075657,0.0001978,2]
[359853515,1746373851337,-450.0,0.0001978,2]
[359853516,1746373851348,-450.0,0.0001978,2]
[359853517,1746373851358,-450.0,0.0001978,2]
[359853518,1746373851367,-496.35,0.0001978,2]
[359853519,1746373851378,-450.0,0.0001978,2]
[359853520,1746373851387,-450.0,0.0001978,2]
[359853521,1746373851398,-237.89253835,0.0001978,2]
[359853522,1746373851408,-482.19,0.0001978,2]
[359853523,1746373851418,-450.0,0.0001978,2]
[359853524,1746373851428,-450.0,0.0001978,2]
[359853525,1746373851438,-450.0,0.0001978,2]
[359853526,1746373851447,-450.0,0.0001978,2]
[359853527,1746373851456,-566.50193112,0.0001978,2]
[359853528,1746373851466,-450.0,0.0001978,2]
[359853529,1746373851476,-452.31,0.0001978,2]
[359853530,1746373851485,-728.06,0.0001978,2]
[359853531,1746373851495,-450.0,0.0001978,2]
[359853532,1746373851505,-664.04,0.0001978,2]
[359853533,1746373851515,-450.0,0.0001978,2]
[359853534,1746373851524,-450.0,0.0001978,2]
[359853535,1746373851534,-450.0,0.0001978,2]
[359853536,1746373851544,-450.0,0.0001978,2]
[359853537,1746373851554,-326.0,0.0001978,2]
[359853538,1746373851564,-450.0,0.0001978,2]
[359853539,1746373851575,-450.0,0.0001978,2]
[359853540,1746373851584,-450.0,0.0001978,2]
[359853541,1746373851594,-1120.7,0.0001978,2]
[359853542,1746373851604,-450.0,0.0001978,2]
[359853543,1746373851613,-450.0,0.0001978,2]
[359853544,1746373851623,-450.0,0.0001978,2]
[359853545,1746373851632,-450.0,0.0001978,2]
[359853546,1746373851642,-21040.99,0.0001978,2]
[359853547,1746373851652,-450.0,0.0001978,2]
[359853548,1746373851663,-450.0,0.0001978,2]
[359853549,1746373851672,-450.0,0.0001978,2]
[359853550,1746373851683,-450.0,0.0001978,2]
[359853551,1746373851693,-245.69,0.0001978,2]
[359853552,1746373851702,-450.0,0.0001978,2]
[359853553,1746373851711,-450.0,0.0001978,2]
[359853554,1746373851721,-450.0,0.0001978,2]
[359853555,1746373851731,-1169.37,0.0001978,2]
[359853556,1746373851741,-450.0,0.0001978,2]
[359853557,1746373851751,-450.0,0.0001978,2]
[359853558,1746373851761,-490.14975957,0.0001978,2]
[359853559,1746373851771,-3381.15,0.0001978,2]
[359853560,1746373851781,-450.0,0.0001978,2]
[359853561,1746373851792,-246.92764661,0.0001978,2]
[359853562,1746373851802,-450.0,0.0001978,2]
[359853563,1746373851812,-450.0,0.0001978,2]
[359853564,1746373851821,-450.0,0.0001978,2]
[359853565,1746373851831,-450.0,0.0001978,2]
[359853566,1746373851840,-3164.28,0.0001978,2]
[359853567,1746373851849,-468.50577214,0.0001978,2]
[359853568,1746373851859,-903.73,0.0001978,2]
[359853569,1746373851868,-450.0,0.0001978,2]
[359853570,1746373851877,-450.0,0.0001978,2]
[359853571,1746373851886,-576.01,0.0001978,2]
[359853572,1746373851896,-412.99,0.0001978,2]
[359853573,1746373851906,-150.02,0.0001978,2]
[359853574,1746373851917,-450.0,0.0001978,2]
[359853575,1746373851926,-450.0,0.0001978,2]
[359853576,1746373851936,-470.0,0.0001978,2]
[359853577,1746373851945,-594.44,0.0001978,2]
[359853578,1746373851954,-450.0,0.0001978,2]
[359853579,1746373851963,-450.0,0.0001978,2]
[359853580,1746373851972,-450.0,0.0001978,2]
[359853581,1746373851982,-533.06579717,0.0001978,2]
[359853582,1746373851992,-450.0,0.0001978,2]
[359853583,1746373852001,-450.0,0.0001978,2]
[359853584,1746373852011,-450.0,0.0001978,2]
[359853585,1746373852021,-450.0,0.0001978,2]
[359853586,1746373852030,-450.0,0.0001978,2]
[359853587,1746373852039,-450.0,0.0001978,2]
[359853588,1746373852049,-233.14,0.0001978,2]
[359853589,1746373852058,-490.0,0.0001978,2]
[359853590,1746373852067,-450.0,0.0001978,2]
[359853591,1746373852081,-454.95,0.0001978,2]
[359853592,1746373852090,-470.0,0.0001978,2]
[359853593,1746373852099,-450.0,0.0001978,2]
[359853594,1746373852109,-450.0,0.0001978,2]
[359853595,1746373852118,-450.0,0.0001978,2]
[359853596,1746373852128,-169.00868661,0.0001978,2]
[359853597,1746373852137,-450.0,0.0001978,2]
[359853598,1746373852146,-156.73,0.0001978,2]
[359853599,1746373852155,-570.10842125,0.0001978,2]
[359853600,1746373852164,-450.0,0.0001978,2]
[359853601,1746373852173,-450.0,0.0001978,2]
[359853602,1746373852183,-450.0,0.0001978,2]
[359853603,1746373852193,-450.0,0.0001978,2]
[359853604,1746373852203,-450.0,0.0001978,2]
[359853605,1746373852212,-450.0,0.0001978,2]
[359853606,1746373852221,-450.0,0.0001978,2]
[359853607,1746373852231,-470.0,0.0001978,2]
[359853608,1746373852241,-450.0,0.0001978,2]
[359853609,1746373852250,-31492.66,0.0001978,2]
[359853610,1746373852259,-450.0,0.0001978,2]
[359853611,1746373852268,-450.0,0.0001978,2]
[359853612,1746373852277,-1637.19,0.0001978,2]
[359853613,1746373852287,-450.0,0.0001978,2]
[359853614,1746373852295,-450.0,0.0001978,2]
[359853615,1746373852304,-450.0,0.0001978,2]
[359853616,1746373852314,-450.0,0.0001978,2]
[359853617,1746373852323,-161.78,0.0001978,2]
[359853618,1746373852332,-450.0,0.0001978,2]
[359853619,1746373852342,-450.0,0.0001978,2]
[359853620,1746373852351,-450.0,0.0001978,2]
[359853621,1746373852360,-470.0,0.0001978,2]
[359853622,1746373852370,-450.0,0.0001978,2]
[359853623,1746373852379,-450.0,0.0001978,2]
[359853624,1746373852389,-563.41155062,0.0001978,2]
[359853625,1746373852399,-476.55,0.0001978,2]
[359853626,1746373852408,-470.0,0.0001978,2]
[359853627,1746373852418,-450.0,0.0001978,2]
[359853628,1746373852427,-470.23,0.0001978,2]
[359853629,1746373852436,-450.0,0.0001978,2]
[359853630,1746373852446,-450.0,0.0001978,2]
[359853631,1746373852455,-538.58,0.0001978,2]
[359853632,1746373852464,-1597.69,0.0001978,2]
[359853633,1746373852474,-450.0,0.0001978,2]
[359853634,1746373852483,-450.0,0.0001978,2]
[359853635,1746373852492,-450.0,0.0001978,2]
[359853636,1746373852501,-536.48,0.0001978,2]
[359853637,1746373852511,-497.04236419,0.0001978,2]
[359853638,1746373852520,-450.0,0.0001978,2]
[359853639,1746373852530,-577.31,0.0001978,2]
[359853640,1746373852540,-526.26,0.0001978,2]
[359853641,1746373852549,-191.20750357,0.0001978,2]
[359853642,1746373852559,-450.0,0.0001978,2]
[359853643,1746373852569,-399.35513429,0.0001978,2]
[359853644,1746373852578,-450.0,0.0001978,2]
[359853645,1746373852588,-450.0,0.0001978,2]
[359853646,1746373852598,-514.971747,0.0001978,2]
[359853647,1746373852608,-450.0,0.0001978,2]
[359853648,1746373852617,-450.0,0.0001978,2]
[359853649,1746373852627,-450.0,0.0001978,2]
[359853650,1746373852636,-567.53,0.0001978,2]
[359853651,1746373852646,-1183.04,0.0001978,2]
[359853652,1746373852655,-450.0,0.0001978,2]
[359853653,1746373852665,-450.0,0.0001978,2]
[359853654,1746373852674,-450.0,0.0001978,2]
[359853655,1746373852685,-450.0,0.0001978,2]
[359853656,1746373852695,-450.0,0.0001978,2]
[359853657,1746373852705,-450.0,0.0001978,2]
[359853658,1746373852715,-1674.11,0.0001978,2]
[359853659,1746373852724,-450.0,0.0001978,2]
[359853660,1746373852734,-450.0,0.0001978,2]
[359853661,1746373852744,-486.24824085,0.0001978,2]
[359853662,1746373852754,-450.0,0.0001978,2]
[359853663,1746373852763,-450.0,0.0001978,2]
[359853664,1746373852773,-450.0,0.0001978,2]
[359853665,1746373852783,-450.0,0.0001978,2]
[359853666,1746373852792,-467.65,0.0001978,2]
[359853667,1746373852802,-1043.89,0.0001978,2]
[359853668,1746373852812,-450.0,0.0001978,2]
[359853669,1746373852821,-450.0,0.0001978,2]
[359853670,1746373852831,-10000.0,0.0001979,2]
[359853671,1746373852841,-653.9212105,0.00019799,2]
[359853672,1746373852850,-500.0,0.00019807,2]
[359853673,1746373852860,-500.0,0.00019807,2]
[359853674,1746373852870,-500.0,0.00019807,2]
[359853675,1746373852881,-500.0,0.00019807,2]
[359853676,1746373852891,-579.83246673,0.00019808,2]
[359853677,1746373852901,-450.0,0.00019808,2]
[359853678,1746373852911,-161.6,0.00019808,2]
[359853679,1746373852922,-450.0,0.00019808,2]
[359853680,1746373852931,-450.0,0.00019808,2]
[359853681,1746373852941,-450.0,0.00019808,2]
[359853682,1746373852951,-450.0,0.00019808,2]
[359853683,1746373852960,-450.0,0.00019808,2]
[359853684,1746373852970,-450.0,0.00019808,2]
[359853685,1746373852980,-450.0,0.00019808,2]
[359853686,1746373852990,-450.0,0.00019808,2]
[359853687,1746373852999,-450.0,0.00019808,2]
[359853688,1746373853009,-450.0,0.00019808,2]
[359853689,1746373853019,-450.0,0.00019808,2]
[359853690,1746373853029,-450.0,0.00019808,2]
[359853691,1746373853039,-450.0,0.00019808,2]
[359853692,1746373853048,-455.12,0.00019808,2]
[359853693,1746373853058,-539.67,0.00019808,2]
[359853694,1746373853068,-450.0,0.00019808,2]
[359853695,1746373853083,-585.67,0.00019808,2]
[359853696,1746373853093,-450.0,0.00019808,2]
[359853697,1746373853103,-470.0,0.00019808,2]
[359853698,1746373853113,-450.0,0.00019808,2]
[359853699,1746373853124,-450.0,0.00019808,2]
[359853700,1746373853134,-450.0,0.00019808,2]
[359853701,1746373853143,-450.0,0.00019808,2]
[359853702,1746373853156,-450.0,0.00019808,2]
[359853703,1746373853308,-593.23,0.00019808,2]
[359853704,1746373853319,-450.0,0.00019808,2]
[359853705,1746373853328,-450.0,0.00019808,2]
[359853706,1746373853338,-470.0,0.00019808,2]
[359853707,1746373853347,-450.0,0.00019808,2]
[359853708,1746373853357,-450.0,0.00019808,2]
[359853709,1746373853367,-450.0,0.00019808,2]
[359853710,1746373853377,-470.0,0.00019808,2]
[359853711,1746373853387,-563.52,0.00019808,2]
[359853712,1746373853396,-450.0,0.00019808,2]
[359853713,1746373853406,-202.96,0.00019808,2]
[359853714,1746373853416,-470.0,0.00019808,2]
[359853715,1746373853426,-450.0,0.00019808,2]
[359853716,1746373853435,-450.0,0.00019808,2]
[359853717,1746373853445,-450.0,0.00019808,2]
[359853718,1746373853455,-450.0,0.00019808,2]
[359853719,1746373853465,-450.0,0.00019808,2]
[359853720,1746373853474,-470.0,0.00019808,2]
[359853721,1746373853484,-450.0,0.00019808,2]
[359853722,1746373853494,-450.0,0.00019808,2]
[359853723,1746373853503,-450.0,0.00019808,2]
[359853724,1746373853512,-450.0,0.00019808,2]
[359853725,1746373853522,-450.0,0.00019808,2]
[359853726,1746373853531,-551.69,0.00019808,2]
[359853727,1746373853541,-450.0,0.00019808,2]
[359853728,1746373853551,-338.19158264,0.00019808,2]
[359853729,1746373853560,-450.0,0.00019808,2]
[359853730,1746373853570,-450.0,0.00019808,2]
[359853731,1746373853580,-573.13,0.00019808,2]
[359853732,1746373853589,-452.31,0.00019808,2]
[359853733,1746373853599,-728.06,0.00019808,2]
[359853734,1746373853608,-450.0,0.00019808,2]
[359853735,1746373853618,-664.04,0.00019808,2]
[359853736,1746373853628,-255.5659597,0.00019808,2]
[359853737,1746373853638,-450.0,0.00019808,2]
[359853738,1746373853647,-450.0,0.00019808,2]
[359853739,1746373853656,-450.0,0.00019808,2]
[359853740,1746373853666,-450.0,0.00019808,2]
[359853741,1746373853675,-450.0,0.00019808,2]
[359853742,1746373853684,-450.0,0.00019808,2]
[359853743,1746373853694,-1120.7,0.00019808,2]
[359853744,1746373853703,-450.0,0.00019808,2]
[359853745,1746373853712,-450.0,0.00019808,2]
[359853746,1746373853722,-450.0,0.00019808,2]
[359853747,1746373853731,-21040.99,0.00019808,2]
[359853748,1746373853742,-450.0,0.00019808,2]
[359853749,1746373853752,-450.0,0.00019808,2]
[359853750,1746373853762,-450.0,0.00019808,2]
[359853751,1746373853771,-450.0,0.00019808,2]
[359853752,1746373853781,-592.79,0.00019808,2]
[359853753,1746373853790,-1169.37,0.00019808,2]
[359853754,1746373853800,-450.0,0.00019808,2]
[359853755,1746373853810,-3381.15,0.00019808,2]
[359853756,1746373853819,-450.0,0.00019808,2]
[359853757,1746373853828,-450.0,0.00019808,2]
[359853758,1746373853838,-450.0,0.00019808,2]
[359853759,1746373853848,-470.0,0.00019808,2]
[359853760,1746373853857,-450.0,0.00019808,2]
[359853761,1746373853866,-3164.28,0.00019808,2]
[359853762,1746373853876,-903.73,0.00019808,2]
[359853763,1746373853885,-450.0,0.00019808,2]
[359853764,1746373853895,-576.01,0.00019808,2]
[359853765,1746373853904,-484.60153019,0.00019808,2]
[359853766,1746373853913,-450.0,0.00019808,2]
[359853767,1746373853923,-450.0,0.00019808,2]
[359853768,1746373853932,-450.0,0.00019808,2]
[359853769,1746373853942,-450.0,0.00019808,2]
[359853770,1746373853952,-450.0,0.00019808,2]
[359853771,1746373853961,-450.0,0.00019808,2]
[359853772,1746373853971,-450.0,0.00019808,2]
[359853773,1746373853981,-389.39397556,0.00019808,2]
[359853774,1746373853991,-450.0,0.00019808,2]
[359853775,1746373854000,-454.95,0.00019808,2]
[359853776,1746373854010,-450.0,0.00019808,2]
[359853777,1746373854019,-450.0,0.00019808,2]
[359853778,1746373854029,-450.0,0.00019808,2]
[359853779,1746373854038,-450.0,0.00019808,2]
[359853780,1746373854048,-450.0,0.00019808,2]
[359853781,1746373854058,-450.0,0.00019808,2]
[359853782,1746373854068,-450.0,0.00019808,2]
[359853783,1746373854079,-300.98089035,0.00019808,2]
[359853784,1746373854089,-450.0,0.00019808,2]
[359853785,1746373854099,-31492.66,0.00019808,2]
[359853786,1746373854108,-450.0,0.00019808,2]
[359853787,1746373854118,-450.0,0.00019808,2]
[359853788,1746373854128,-1637.19,0.00019808,2]
[359853789,1746373854138,-450.0,0.00019808,2]
[359853790,1746373854147,-450.0,0.00019808,2]
[359853791,1746373854156,-450.0,0.00019808,2]
[359853792,1746373854166,-450.0,0.00019808,2]
[359853793,1746373854176,-450.0,0.00019808,2]
[359853794,1746373854185,-450.0,0.00019808,2]
[359853795,1746373854194,-450.0,0.00019808,2]
[359853796,1746373854203,-450.0,0.00019808,2]
[359853797,1746373854212,-538.58,0.00019808,2]
[359853798,1746373854221,-1597.69,0.00019808,2]
[359853799,1746373854231,-450.0,0.00019808,2]
[359853800,1746373854239,-450.0,0.00019808,2]
[359853801,1746373854248,-536.48,0.00019808,2]
[359853802,1746373854258,-450.0,0.00019808,2]
[359853803,1746373854267,-577.31,0.00019808,2]
[359853804,1746373854276,-450.0,0.00019808,2]
[359853805,1746373854285,-450.0,0.00019808,2]
[359853806,1746373854294,-450.0,0.00019808,2]
[359853807,1746373854303,-450.0,0.00019808,2]
[359853808,1746373854312,-450.0,0.00019808,2]
[359853809,1746373854322,-450.0,0.00019808,2]
[359853810,1746373854330,-567.53,0.00019808,2]
[359853811,1746373854340,-1183.04,0.00019808,2]
[359853812,1746373854349,-450.0,0.00019808,2]
[359853813,1746373854358,-450.0,0.00019808,2]
[359853814,1746373854367,-450.0,0.00019808,2]
[359853815,1746373854376,-198.85228585,0.00019808,2]
[359853816,1746373854385,-182.31711044,0.00019808,2]
[359853817,1746373854394,-450.0,0.00019808,2]
[359853818,1746373854403,-1674.11,0.00019808,2]
[359853819,1746373854412,-450.0,0.00019808,2]
[359853820,1746373854422,-450.0,0.00019808,2]
[359853821,1746373854432,-492.61,0.00019808,2]
[359853822,1746373854441,-450.0,0.00019808,2]
[359853823,1746373854450,-467.65,0.00019808,2]
[359853824,1746373854460,-518.77246174,0.00019808,2]
[359853825,1746373854470,-1043.89,0.00019808,2]
[359853826,1746373854479,-450.0,0.00019808,2]
[359853827,1746373854489,-210.48,0.00019808,2]
[359853828,1746373854499,-500.0,0.00019808,2]
[359853829,1746373854507,-284.26671701,0.00019809,2]
[359853830,1746373854517,-1886.58059296,0.00019809,2]
[359853831,1746373854526,-500.0,0.00019834,2]
[359853832,1746373854535,-450.0,0.00019835,2]
[359853833,1746373854544,-323.91,0.00019835,2]
[359853834,1746373854553,-450.0,0.00019835,2]
[359853835,1746373854564,-450.0,0.00019835,2]
[359853836,1746373854573,-461.44228444,0.00019835,2]
[359853837,1746373854583,-450.0,0.00019835,2]
[359853838,1746373854592,-450.0,0.00019835,2]
[359853839,1746373854601,-450.0,0.00019835,2]
[359853840,1746373854610,-450.0,0.00019835,2]
[359853841,1746373854619,-450.0,0.00019835,2]
[359853842,1746373854628,-450.0,0.00019835,2]
[359853843,1746373854637,-450.0,0.00019835,2]
[359853844,1746373854646,-539.67,0.00019835,2]
[359853845,1746373854655,-450.0,0.00019835,2]
[359853846,1746373854665,-450.0,0.00019835,2]
[359853847,1746373854675,-547.18,0.00019835,2]
[359853848,1746373854684,-450.0,0.00019835,2]
[359853849,1746373854694,-450.0,0.00019835,2]
[359853850,1746373854703,-450.0,0.00019835,2]
[359853851,1746373854712,-206.46,0.00019835,2]
[359853852,1746373854722,-450.0,0.00019835,2]
[359853853,1746373854731,-450.0,0.00019835,2]
[359853854,1746373854740,-450.0,0.00019835,2]
[359853855,1746373854750,-450.0,0.00019835,2]
[359853856,1746373854759,-258.55,0.00019835,2]
[359853857,1746373854769,-450.0,0.00019835,2]
[359853858,1746373854778,-450.0,0.00019835,2]
[359853859,1746373854788,-450.0,0.00019835,2]
[359853860,1746373854797,-484.4,0.00019835,2]
[359853861,1746373854806,-450.0,0.00019835,2]
[359853862,1746373854816,-528.01,0.00019835,2]
[359853863,1746373854825,-450.0,0.00019835,2]
[359853864,1746373854834,-450.0,0.00019835,2]
[359853865,1746373854844,-450.0,0.00019835,2]
[359853866,1746373854854,-450.0,0.00019835,2]
[359853867,1746373854863,-450.0,0.00019835,2]
[359853868,1746373854873,-452.31,0.00019835,2]
[359853869,1746373854882,-728.06,0.00019835,2]
[359853870,1746373854892,-664.04,0.00019835,2]
[359853871,1746373854902,-450.0,0.00019835,2]
[359853872,1746373854911,-470.0,0.00019835,2]
[359853873,1746373854921,-450.0,0.00019835,2]
[359853874,1746373854931,-450.0,0.00019835,2]
[359853875,1746373854941,-568.16,0.00019835,2]
[359853876,1746373854950,-450.0,0.00019835,2]
[359853877,1746373854960,-1120.7,0.00019835,2]
[359853878,1746373854969,-450.0,0.00019835,2]
[359853879,1746373854979,-470.0,0.00019835,2]
[359853880,1746373854988,-21040.99,0.00019835,2]
[359853881,1746373854998,-450.0,0.00019835,2]
[359853882,1746373855008,-450.0,0.00019835,2]
[359853883,1746373855018,-450.0,0.00019835,2]
[359853884,1746373855027,-1169.37,0.00019835,2]
[359853885,1746373855037,-520.47,0.00019835,2]
[359853886,1746373855047,-3381.15,0.00019835,2]
[359853887,1746373855056,-450.0,0.00019835,2]
[359853888,1746373855066,-344.09,0.00019835,2]
[359853889,1746373855078,-450.0,0.00019835,2]
[359853890,1746373855088,-470.0,0.00019835,2]
[359853891,1746373855097,-3164.28,0.00019835,2]
[359853892,1746373855106,-903.73,0.00019835,2]
[359853893,1746373855115,-169.41,0.00019835,2]
[359853894,1746373855126,-576.01,0.00019835,2]
[359853895,1746373855135,-450.0,0.00019835,2]
[359853896,1746373855145,-450.0,0.00019835,2]
[359853897,1746373855155,-450.0,0.00019835,2]
[359853898,1746373855165,-450.0,0.00019835,2]
[359853899,1746373855174,-450.0,0.00019835,2]
[359853900,1746373855184,-450.0,0.00019835,2]
[359853901,1746373855193,-450.0,0.00019835,2]
[359853902,1746373855202,-454.95,0.00019835,2]
[359853903,1746373855212,-270.54,0.00019835,2]
[359853904,1746373855221,-450.0,0.00019835,2]
[359853905,1746373855231,-450.0,0.00019835,2]
[359853906,1746373855240,-450.0,0.00019835,2]
[359853907,1746373855250,-450.0,0.00019835,2]
[359853908,1746373855259,-450.0,0.00019835,2]
[359853909,1746373855268,-450.0,0.00019835,2]
[359853910,1746373855278,-31492.66,0.00019835,2]
[359853911,1746373855287,-450.0,0.00019835,2]
[359853912,1746373855297,-450.0,0.00019835,2]
[359853913,1746373855306,-1637.19,0.00019835,2]
[359853914,1746373855316,-470.0,0.00019835,2]
[359853915,1746373855328,-450.0,0.00019835,2]
[359853916,1746373855338,-233.64,0.00019835,2]
[359853917,1746373855347,-450.0,0.00019835,2]
[359853918,1746373855356,-450.0,0.00019835,2]
[359853919,1746373855366,-557.97,0.00019835,2]
[359853920,1746373855375,-450.0,0.00019835,2]
[359853921,1746373855384,-538.58,0.00019835,2]
[359853922,1746373855394,-1597.69,0.00019835,2]
[359853923,1746373855403,-450.0,0.00019835,2]
[359853924,1746373855413,-410.94,0.00019835,2]
[359853925,1746373855422,-536.48,0.00019835,2]
[359853926,1746373855432,-450.0,0.00019835,2]
[359853927,1746373855441,-577.31,0.00019835,2]
[359853928,1746373855451,-450.0,0.00019835,2]
[359853929,1746373855461,-450.0,0.00019835,2]
[359853930,1746373855471,-450.0,0.00019835,2]
[359853931,1746373855481,-450.0,0.00019835,2]
[359853932,1746373855490,-450.0,0.00019835,2]
[359853933,1746373855501,-567.53,0.00019835,2]
[359853934,1746373855510,-1183.04,0.00019835,2]
[359853935,1746373855520,-450.0,0.00019835,2]
[359853936,1746373855529,-563.02,0.00019835,2]
[359853937,1746373855539,-450.0,0.00019835,2]
[359853938,1746373855548,-1674.11,0.00019835,2]
[359853939,1746373855558,-450.0,0.00019835,2]
[359853940,1746373855567,-450.0,0.00019835,2]
[359853941,1746373855577,-450.0,0.00019835,2]
[359853942,1746373855587,-467.65,0.00019835,2]
[359853943,1746373855596,-1043.89,0.00019835,2]
[359853944,1746373855606,-450.0,0.00019835,2]
[359853945,1746373855616,-284.26671701,0.00019839,2]
[359853946,1746373855626,-1886.58059296,0.00019839,2]
[359853947,1746373855635,-2463.642,0.00019854,2]